{"text_format":"1","workbook":"xlsx","n_sheets":3,"sheets":["Лист1","Лист2","Лист3"],"not_rendered":{"charts":0,"images":0,"macros":0,"external_links":0,"defined_names":0,"comments":0,"pivot_tables":0},"unopened":[],"bounds":{"document_bytes":16777216,"sheet_cells":100000,"rows_first":2000,"rows_last":500,"rows_between":2000,"halvings":0,"cell_chars":16384,"cell_head_chars":4096},"cells_cut":0,"cells_raw":0,"read":"whole","date_system":"1900"}

{"sheet":"Лист1","index":0,"n_rows":0,"n_cols":0,"rows_kept":0,"cut":false,"hidden":false,"merged":[]}

{"sheet":"Лист2","index":1,"n_rows":0,"n_cols":0,"rows_kept":0,"cut":false,"hidden":false,"merged":[]}

{"sheet":"Лист3","index":2,"n_rows":116,"n_cols":7,"rows_kept":116,"cut":false,"hidden":false,"merged":[]}
[null,null,"Приложение № 2"]
[null,null,"к решению Совета депутатов"]
[null,null,"Никольского городского поселения"]
[null,null,"Тосненского района Ленинградской области"]
[null,null,"от  12 .02.2013  № 210"]
[]
[null,null,"Приложение № 6"]
[null,null,"к решению Совета депутатов"]
[null,null,"Никольского городского поселения"]
[null,null,"Тосненского района Ленинградской области"]
[null,null,"от  11 декабря2012 № 199"]
[null,"                                              Распределение бюджетных ассигнований "]
[null," по разделам, подразделам, целевым статьям и видам расходов классификации расходов  "]
[null,"                                              бюджета на 2013 год"]
[null,null,null,null,null,"(тысяч рублей)"]
["№  ",null,"Рз  раздел","ПР  подраздел","ЦСР целевая статья","ВР вид расхода","2013 год"]
[null,"ИТОГО",null,null,null,null,{"$f":"SUM(G18+G39+G43+G51+G62+G86+G90+G97+G106+G112)","v":198822.24700000003}]
[1,"Общегосударственные расходы",null,null,null,null,{"$f":"SUM(G19)","v":29026.319}]
[null,"Функционирование Правительства Российской Федерации,высших органов исполнительной власти субъектов Российской Федерации,местных администраций","0100",null,null,null,{"$f":"SUM(G20+G25+G26+G31+G35)","v":29026.319}]
[null,"Руководство и управление в сфере установленных функций органов государственной власти субъекта Российской Федерации и органов местного самоуправления","0100","0104","002 00 00",null,{"$f":"SUM(G21+G23)","v":19817.12}]
[null,"Центральный аппарат","0100","0104","002 04 00",null,{"$f":"SUM(G22)","v":18697.12}]
[null,"Выполнение функций органами местного самоуправления","0100","0104","002 04 00 ",500,18697.12]
[null,"Глава местной администрации","0100","0104","002 08 00",null,{"$f":"SUM(G24)","v":1120}]
[null,"Выполнение функций органами местного самоуправления","0100","0104","002 08 00 ",500,1120]
[null,"Выполнение ОГП в сфере профилактики и правонарушений несовершеннолетних","0100","0104","521 02 02","500",527.37900000000002]
[null,"Иные межбюджетные трансферты бюджетам муниципальных районов из бюджетов поселений на осуществление части полномочий по решению вопросов местного значения ","0100","0104","521 06 00","017",{"$f":"SUM(G27:G30)","v":1164.9679999999998}]
[null," Иные межбюджетные трансферты для осуществления  полномочий на решение вопросов межмуниципального характера в сфере исполнения   бюджета","0100","0104","521 06 60","017",385]
[null," Иные межбюджетные трансферты для осуществления  полномочий на решение вопросов межмуниципального характера по организации в границах поселений теплоснабжения(гор.водоснабжение, отопление) в части формирования статистической отчетности","0100","0104","521 06 62","017",129.30000000000001]
[null," Иные межбюджетные трансферты для осуществления  полномочий на решение вопросов межмуниципального характера в сфере архивного дела ","0100","0104","521 05 65","502",251.5]
[null," Иные межбюджетные трансферты на осуществление части отдельных полномочий  по осуществлению внешнего муниципального контроля ","0100","0106","521 06 64","017",399.16800000000001]
[null,"Резервные фонды","0100","0111",null,null,{"$f":"SUM(G32)","v":3150}]
[null,"Резервные фонды","0100","0111","070 00 00",null,{"$f":"SUM(G33)","v":3150}]
[null,"Резервные фонды местных администраций","0100","0111","070 05 00",null,{"$f":"SUM(G34)","v":3150}]
[null,"Прочие расходы","0100","0111","070 05 00 ","013",3150]
[null,"Другие общегосударственные вопросы","0100","0113",null,null,{"$f":"SUM(G36)","v":4366.8519999999999}]
[null,"Реализация государственных функций,связанных с общегосударственным управлением","0100","0113","0920000",null,{"$f":"SUM(G37)","v":4366.8519999999999}]
[null,"Выполнение других обязательств государства","0100","0113","0920300",null,{"$f":"SUM(G38)","v":4366.8519999999999}]
[null,"Выполнение функций органами местного самоуправления","0100","0113","0920300","500",4366.8519999999999]
[2,"Национальная оборона","0200",0,null,null,{"$f":"SUM(G40)","v":1095.848}]
[null,"Мобилизационная и вневойсковая подготовка","0200","0203",null,null,{"$f":"SUM(G41)","v":1095.848}]
[null,"Осуществление первичного воинского учета, где отсутвтвуют военные комиссариаты ","0200","0203","001 36 00",null,{"$f":"SUM(G42)","v":1095.848}]
[null,"Выполнение функций органами местного самоуправления","0200","0203","001 36 00",500,1095.848]
[3,"Национальная безопасность и правоохранительная деятельность","0300",0,null,null,{"$f":"SUM(G44+G48)","v":910}]
[null,"Защита населения и территории от  чрезвычайных ситуаций природного и техногенного характера, гражданская оборона","0300","0309",null,null,{"$f":"SUM(G45)","v":140}]
[null,"Мероприятия по предупреждению и ликвидации последствий чрезвычайных ситуаций и стихийных бедствий","0300","0309","218 00 00",null,{"$f":"SUM(G46)","v":140}]
[null,"Предупреждение и ликвидация последствий чрезвычайных ситуаций и стихийных бедствий","0300","0309","218 01 00",null,{"$f":"SUM(G47)","v":140}]
[null,"Выполнение функций органами местного самоуправления","0300","0309","218 01 00","500",140]
[null,"Обеспечение пожарной безопасности","0300","0310",null,null,{"$f":"SUM(G50)","v":770}]
[null,"Программа\"Пожарная безопасность на территории Никольского городского поселенияТосненского района Ленинградской области","0300","0310","7950004",null,{"$f":"SUM(G50)","v":770}]
[null,"Выполнение функций органами местного самоуправления","0300","0310","7950004","500",770]
[4,"Национальная экономика","0400",null,null,null,{"$f":"SUM(G55+G52+G60)","v":17487}]
[null,"Дорожное хозяйство","0400","0409",null,null,{"$f":"SUM(G53)","v":15587}]
[null,"Программа \" Обеспечение безопасности дорожного движения на территорииНикольского городского поселения ТР ЛО ","0400","0409","7950005","500",{"$f":"SUM(G54)","v":15587}]
[null,"Выполнение функций органами местного самоуправления","0400","0409","7950005","500",15587]
[null,"Другие вопросы в области национальной экономики","0400","0412",null,null,{"$f":"SUM(G56+G58)","v":1500}]
[null,"Мероприятия в области строительства,архитектуры и градостроительства","0400","0412","338 00 00",null,{"$f":"SUM(G57)","v":1300}]
[null,"Выполнение функций органами местного самоуправления","0400","0412","338 00 00",500,1300]
[null,"Мероприятия по землеустройству и землепользованию","0400","0412","340 03 00",null,{"$f":"SUM(G59)","v":200}]
[null,"Выполнение функций органами местного самоуправления","0400","0412","340 03 00",500,200]
[null,"Мероприятия в обасти экологической безопасности","0400","0412","340 04 00",null,{"$f":"SUM(G61)","v":400}]
[null,"Выполнение функций органами местного самоуправления","0400","0412","340 04 00","500",400]
[5,"Жилищно-коммунальное хозяйство","0500",0,null,null,{"$f":"SUM(G63+G69+G79)","v":113263}]
[null,"Жилищное хозяйство","0500","0501",null,null,{"$f":"SUM(G65+G66)","v":28514.48}]
[null,"Мероприятия в обасти жилищного хозяйства","0500","0501","350 03 00",null,{"$f":"SUM(G65)","v":8514.48}]
[null,"Выполнение функций органами местного самоуправления","0500","0501","350 03 00","500",8514.48]
[null,"Целевые программы муниципальных образований","0500","0501","795 00 00",null,{"$f":"SUM(G67:G68)","v":20000}]
[null,"Программа по проведению капитального ремонта многоквартирных домов, расположенных на территории Никольского городского поселения Тосненского района Ленинградской области ","0500","0501","795 00 01",null,8000]
[null,"Программа проведения капитального ремонта лифтов жилого фонда","0500","0501","795 00 03",null,12000]
[null,"Коммунальное хозяйство","0500","0502",null,null,{"$f":"SUM(G70+G77)","v":20800}]
[null,"Поддержка коммунального хозяйства","0500","0502","351 00 00",null,{"$f":"SUM(G74+G75+G71)","v":15800}]
[null,"Компенсация выпадающих доходов организациям, предоставляющим населению услуги  (сжиженный газ)","0500","0502","351 05 00","006",{"$f":"SUM(G72)","v":500}]
[null,"Субсидии юридическим лицам","0500","0502","351 05 00","006",500]
[null,"Компенсация выпадающих доходов организациям, предоставляющим населению услуги  (бани)","0500","0502","351 05 00","500",{"$f":"SUM(G74)","v":900}]
[null,"Субсидии юридическим лицам","0500","0502","351 05 00","500",900]
[null,"Мероприятия в области коммунального хозяйства","0500","0502","351 05 00",null,{"$f":"SUM(G76)","v":14400}]
[null,"Выполнение функций органами местного самоуправления","0500","0502","351 05 00","500",14400]
[null,"Целевая программа газификации Никольского городского поселения мкр. \"Перевоз\",\"Белая дача\"","0500","0502","795 00  02","003",{"$f":"SUM(G78)","v":5000}]
[null,"Выполнение функций органами местного самоуправления","0500","0502","795 00  02","003",5000]
[null,"Благоустройство","0500","0503",null,null,{"$f":"SUM(G80)","v":63948.52}]
[null,"Благоустройство","0500","0503","600 00 00",null,{"$f":"SUM(G85+G81+G84+G82)","v":63948.52}]
[null," Уличное освещение","0500","0503","600 01 00",500,6900]
[null,"Содержание автомобильных дорог и инженерных сооружений на них в границах городских округов и поселений в рамках благоустройства","0500","0503","600 02 00",null,{"$f":"SUM(G83)","v":3000}]
[null,"Мероприятия по благоустройству, механизированная уборка","0500","0503","600 02 02",500,3000]
[null,"Озеленение","0500","0503","600 03 00","500",1948.52]
[null,"Прочие мероприятия по благоустройству городских  поселений","0500","0503","600 05 00",500,52100]
[6,"Образование",null,null,null,null,{"$f":"SUM(G89)","v":982.2}]
[null,"Молодежная политика и оздоровление детей ","0700","0707",null,null,{"$f":"SUM(G89)","v":982.2}]
[null,"Программа \"Реализация молодежной политики в Никольском городском поселении Тосненского района Ленинградской области","0700","0707","795 00 06",null,{"$f":"SUM(G89)","v":982.2}]
[null,"Выполнение функций органами местных самоуправлений","0700","0707","795 00 06",500,982.2]
[7,"Культура и кинематография","0800",0,null,null,{"$f":"SUM(G91)","v":15838}]
[null,"Культура","0800","0801",null,null,{"$f":"SUM(G92)","v":15838}]
[null,"Дворцы и дома культуры, другие учреждения культуры ","0800","0801","440 00 00",null,{"$f":"SUM(G93)","v":15838}]
[null,"Обеспечение деятельности подведомственных учреждений","0800","0801","440 99 00",null,{"$f":"SUM(G94)","v":15838}]
[null,"Выполнение функций бюджетными учреждениями","0800","0801","440 99 00","001",{"$f":"SUM(G95:G96)","v":15838}]
[null,"МКУ \"Никольский дом культуры\"","0800","0801","440 99 00","001",15288]
[null,"МКУ \"Никольский дом культуры\"(расходы за счет платных услуг и неналоговых доходов)","0800","0801","440 99 99","001",550]
[8,"  Социальная политика",1000,0,null,null,{"$f":"SUM(G104+G102+G98)","v":2025.88}]
[null,"Пенсионное обеспечение",1000,"1001",null,null,{"$f":"SUM(G101)","v":275.88}]
[null,"Доплаты к пенсия, дополнительное пенсионное обеспечение","1000","1001","4910000",null,{"$f":"SUM(G100)","v":275.88}]
[null,"Доплаты к пенсиям государственных служащих субъектов РФ и муниципальных служащих","1000","1001","4910000",null,{"$f":"SUM(G101)","v":275.88}]
[null,"Социальные выплаты","1000","1001","491 01 00","005",275.88]
[null,"Социальное обеспечение населения","1000","1003","505 48 00",null,{"$f":"SUM(G103)","v":1650}]
[null,"Предоставление субсидий на оплату жилого помещения и коммунальных услуг отдельных категорий граждан поселения ","1000","1003","505 48 00","005",1650]
[null,"Оказание других видов социальной помощи","1000","1003","505 86 00",null,{"$f":"SUM(G105)","v":100}]
[null,"Социальные выплаты","1000","1003","505 86 00","005",100]
[9,"Физическая культура и спорт","1100",0,null,null,{"$f":"SUM(G107)","v":17394}]
[null,"Физическая культура ","11000","1101",null,null,{"$f":"SUM(G108)","v":17394}]
[null,"Обеспечение деятельности подведомственных учреждений","11000","1101","482 99 00",null,{"$f":"SUM(G109)","v":17394}]
[null,"Выполнение функций бюджетными учреждениями","11000","1101","482 99 00","001",{"$f":"SUM(G110:G111)","v":17394}]
[null,"МКУ \"Спортивно-досуговый центр \"Надежда\"","11000","1101","482 99 00","001",16844]
[null,"МКУ \"Спортивно-досуговый центр \"Надежда\"(расходы за счет платных услуг и неналоговых доходов)","11000","1101","482 99 99","001",550]
[10,"Средства массовой информации","1200",null,null,null,{"$f":"SUM(G113)","v":800}]
[null,"Периодическая печать и издательства","1200","1202",null,null,{"$f":"SUM(G114)","v":800}]
[null,"Периодические издания, учрежденные органами законодательной и исполнительной власти","1200","1202","4570000",null,{"$f":"SUM(G116)","v":800}]
[null,"Государственная поддержка в сфере средств массовой информации ","1200","1202","4578500",null,{"$f":"SUM(G116)","v":800}]
[null,"Выполнение функций органами местного самоуправления","1200","1202","4578500","500",800]